bitfinex/quotes_BTCUSD_20250904
["timestamp","ask_amount","ask_price","bid_price","bid_amount"]
[1756996962380,0.1813401,110290.0,110280.0,0.18244166]
[1756996962585,0.1813401,110290.0,110280.0,0.18345166]
[1756996962825,0.1813401,110290.0,110280.0,0.18665166]
[1756996964159,0.1813401,110290.0,110280.0,0.18765166]
[1756996965350,0.42816036,110300.0,110290.0,0.1813401]
[1756996965556,0.42816036,110300.0,110290.0,0.1865501]
[1756996965766,0.42816036,110300.0,110290.0,0.00521]
[1756996966174,0.1813401,110290.0,110280.0,0.00308512]
[1756996967585,0.1813401,110290.0,110280.0,0.18665166]
[1756996968031,0.1813401,110290.0,110280.0,0.18765166]
[1756996968957,0.1813401,110290.0,110280.0,0.18965166]
[1756996970189,0.1813401,110290.0,110280.0,0.00308512]
[1756996970866,0.27325609,110290.0,110280.0,0.00308512]
[1756996971007,0.27325609,110290.0,110280.0,0.00829512]
[1756996971213,0.27325609,110290.0,110280.0,0.00628512]
[1756996971471,0.27325609,110290.0,110280.0,0.00308512]
[1756996971888,0.27325609,110290.0,110280.0,0.00628512]
[1756996972164,0.27325609,110290.0,110280.0,0.00308512]
[1756996972320,0.27325609,110290.0,110280.0,0.00829512]
[1756996972748,0.27238609,110290.0,110280.0,0.00829512]
[1756996973827,0.27238609,110290.0,110280.0,0.00308512]
[1756996974234,0.66109,110290.0,110280.0,0.00308512]
[1756996975445,0.66109,110290.0,110280.0,0.00108512]
[1756996975617,0.64597103,110290.0,110280.0,0.00108512]
[1756996975766,0.64597103,110290.0,110280.0,0.00208512]
[1756996975979,0.67323108,110290.0,110280.0,0.00208512]
[1756996976402,0.67323108,110290.0,110280.0,0.00108512]
[1756996976639,0.71299099,110290.0,110280.0,0.00108512]
[1756996977658,0.94517067,110290.0,110280.0,0.00108512]
[1756996977889,0.97228543,110290.0,110280.0,0.00108512]
[1756996978089,0.94517067,110290.0,110280.0,0.00108512]
[1756996978490,1.10005067,110290.0,110280.0,0.00108512]
[1756996978692,1.11946793,110290.0,110280.0,8.512e-05]
[1756996978897,1.07970802,110290.0,110280.0,8.512e-05]
[1756996979958,0.92482802,110290.0,110280.0,8.512e-05]
[1756996980251,1.07966802,110290.0,110280.0,8.512e-05]
[1756996980675,0.4739034,110290.0,110280.0,8.512e-05]
[1756996980877,0.4749034,110290.0,110280.0,8.512e-05]
[1756996981079,0.92582802,110290.0,110280.0,8.512e-05]
[1756996981284,1.08066802,110290.0,110280.0,8.512e-05]
[1756996982231,0.92682802,110290.0,110280.0,8.512e-05]
[1756996982471,0.4759034,110290.0,110280.0,0.00529512]
[1756996983170,0.45648614,110290.0,110280.0,0.00529512]
[1756996983831,0.45648614,110290.0,110280.0,8.512e-05]
[1756996984033,1.06225076,110290.0,110280.0,8.512e-05]
[1756996984227,0.90741076,110290.0,110280.0,8.512e-05]
[1756996984433,0.30164614,110290.0,110280.0,0.00529512]
[1756996984668,0.45648614,110290.0,110280.0,0.00529512]
[1756996985483,0.30164614,110290.0,110280.0,0.00529512]
[1756996985739,0.45648614,110290.0,110280.0,0.00529512]
[1756996986116,0.30164614,110290.0,110280.0,0.00529512]
[1756996986370,0.42922609,110290.0,110280.0,0.00529512]
[1756996987391,0.1824701,110290.0,110280.0,0.18665166]
[1756996987628,0.3373101,110290.0,110280.0,0.18665166]
[1756996988987,0.3363101,110290.0,110280.0,0.18665166]
[1756996989226,0.3353101,110290.0,110280.0,0.18665166]
[1756996989694,0.3363101,110290.0,110280.0,0.00529512]
[1756996989945,0.3363101,110290.0,110280.0,0.00629512]
[1756996990214,0.3353101,110290.0,110280.0,0.00629512]
[1756996991094,0.3353101,110290.0,110280.0,0.18765166]
[1756996991514,0.3353101,110290.0,110280.0,0.00629512]
[1756996992188,0.38697355,110290.0,110280.0,0.00629512]
[1756996992424,0.3353101,110290.0,110280.0,0.00629512]
[1756996995444,0.1804701,110290.0,110280.0,0.00629512]
[1756996995636,0.3352701,110290.0,110280.0,0.00629512]
[1756996995881,0.3352701,110290.0,110280.0,0.18765166]
[1756996996056,0.1804701,110290.0,110280.0,0.18765166]
[1756996996271,0.3352701,110290.0,110280.0,0.00629512]
[1756996996606,0.1813401,110290.0,110280.0,0.18765166]
[1756996996816,0.33612437,110300.0,110290.0,0.1813401]
[1756996997037,0.33612437,110300.0,110290.0,0.00534]
[1756996998507,0.33612437,110300.0,110290.0,0.56005373]
[1756996998688,0.33612366,110300.0,110290.0,0.56005373]
[1756996999097,0.28306291,110300.0,110290.0,0.00534]
[1756996999336,0.28306291,110300.0,110290.0,0.18894685]
[1756996999509,0.28306291,110300.0,110290.0,0.1866801]
[1756996999711,0.28306291,110300.0,110290.0,0.00534]
[1756996999957,0.28306291,110300.0,110290.0,0.18894685]
[1756997000182,0.15476,110300.0,110290.0,0.56005373]
[1756997000354,0.33608366,110300.0,110290.0,0.56005373]
[1756997000525,0.33606722,110310.0,110290.0,0.60167219]
[1756997000737,0.18132366,110300.0,110290.0,0.59843219]
[1756997001322,0.18132366,110300.0,110290.0,0.60167219]
[1756997002672,0.18132366,110300.0,110290.0,0.22829856]
[1756997003563,0.18132366,110300.0,110290.0,0.04695846]
[1756997004747,0.18132366,110300.0,110290.0,0.22829856]
[1756997005598,0.18132366,110300.0,110290.0,0.04695846]
[1756997007138,0.18132366,110300.0,110290.0,0.00324]
[1756997007139,0.64661328,110300.0,110290.0,0.00324]
[1756997007347,0.1813401,110290.0,110280.0,0.00332512]
[1756997007552,0.3360601,110290.0,110280.0,0.00332512]
[1756997007765,0.3360601,110290.0,110280.0,0.18904861]
[1756997007989,0.3360601,110290.0,110280.0,0.00542512]
[1756997008558,0.3360601,110290.0,110280.0,0.00642512]
[1756997010041,0.3360601,110290.0,110280.0,0.04656435]
[1756997011868,0.3360601,110290.0,110280.0,0.00642512]
[1756997012085,0.3360601,110290.0,110280.0,0.18778166]
[1756997012499,0.3360601,110290.0,110280.0,0.00642512]
[1756997012703,0.3360601,110290.0,110280.0,0.18778166]
[1756997012909,0.3360601,110290.0,110280.0,0.00642512]
[1756997013538,0.70943373,110290.0,110280.0,0.00108512]
[1756997013739,0.80134972,110290.0,110280.0,0.00108512]
[1756997013944,0.82860688,110290.0,110280.0,0.00108512]
[1756997014394,0.67388688,110290.0,110280.0,0.00108512]
[1756997014601,0.91408793,110290.0,110280.0,0.00108512]
[1756997015001,0.82856688,110290.0,110280.0,0.00108512]
[1756997015658,0.45519325,110290.0,110280.0,0.00432512]
[1756997015846,0.82856688,110290.0,110280.0,0.00432512]
[1756997015989,0.30051325,110290.0,110280.0,0.00642512]
[1756997016199,0.36327726,110290.0,110280.0,0.00642512]
[1756997016601,0.73665089,110290.0,110280.0,0.00108512]
[1756997016806,0.8995549,110290.0,110280.0,0.00108512]
[1756997017015,0.82856688,110290.0,110280.0,0.00108512]
[1756997017871,0.82856688,110290.0,110280.0,8.512e-05]
[1756997018073,0.59896333,110290.0,110280.0,8.512e-05]
[1756997018275,0.80756237,110290.0,110280.0,8.512e-05]
[1756997020995,1.180936,110290.0,110280.0,8.512e-05]
[1756997021233,1.20805076,110290.0,110280.0,8.512e-05]
[1756997021409,1.29996675,110290.0,110280.0,8.512e-05]
[1756997021611,0.92044465,110290.0,110280.0,8.512e-05]
[1756997021940,0.67388866,110290.0,110280.0,8.512e-05]
[1756997022112,0.82952866,110290.0,110280.0,8.512e-05]
[1756997022346,0.83052866,110290.0,110280.0,8.512e-05]
[1756997022706,0.45715503,110290.0,110280.0,0.00528512]
[1756997022912,0.83052866,110290.0,110280.0,0.00528512]
[1756997023088,0.65332925,110290.0,110280.0,0.00528512]
[1756997023297,0.74524524,110290.0,110280.0,0.00528512]
[1756997023508,0.74524524,110290.0,110280.0,8.512e-05]
[1756997023913,0.77250447,110290.0,110280.0,8.512e-05]
[1756997024180,0.61786447,110290.0,110280.0,8.512e-05]
[1756997024358,0.61786447,110290.0,110280.0,0.00528512]
[1756997024504,0.77250447,110290.0,110280.0,0.00528512]
[1756997025412,0.77250447,110290.0,110280.0,8.512e-05]
[1756997026959,0.39913084,110290.0,110280.0,8.512e-05]
[1756997027162,0.77250447,110290.0,110280.0,0.00327512]
[1756997027361,0.77250447,110290.0,110280.0,8.512e-05]
[1756997027788,0.77250447,110290.0,110280.0,0.00528512]
[1756997028169,0.61786447,110290.0,110280.0,0.00528512]
[1756997028677,0.27995562,110290.0,110280.0,0.00528512]
[1756997029631,0.65332925,110290.0,110280.0,0.00528512]
[1756997029845,0.65332925,110290.0,110280.0,8.512e-05]
[1756997030093,0.65332925,110290.0,110280.0,0.00528512]
[1756997030484,0.74524524,110290.0,110280.0,0.00327512]
[1756997030692,0.74524524,110290.0,110280.0,8.512e-05]
[1756997032719,0.77236,110290.0,110280.0,8.512e-05]
[1756997032924,0.7996168,110290.0,110280.0,8.512e-05]
[1756997034362,1.17299043,110290.0,110280.0,8.512e-05]
[1756997034569,0.7996168,110290.0,110280.0,8.512e-05]
[1756997034791,0.89153279,110290.0,110280.0,8.512e-05]
[1756997035618,0.7996168,110290.0,110280.0,8.512e-05]
[1756997036837,1.51299043,110290.0,110280.0,8.512e-05]
[1756997037040,1.53392925,110290.0,110280.0,8.512e-05]
[1756997037239,1.7031151,110290.0,110280.0,8.512e-05]
[1756997037605,2.07773172,110290.0,110280.0,8.512e-05]
[1756997037803,2.16964771,110290.0,110280.0,8.512e-05]
[1756997038243,2.20128879,110290.0,110280.0,8.512e-05]
[1756997038443,2.19496058,110290.0,110280.0,8.512e-05]
[1756997038890,2.20128651,110290.0,110280.0,8.512e-05]
[1756997039188,2.22556813,110290.0,110280.0,8.512e-05]
[1756997039883,2.26652482,110290.0,110280.0,8.512e-05]
[1756997040691,2.31651858,110290.0,110280.0,8.512e-05]
[1756997040998,2.31650597,110290.0,110280.0,8.512e-05]
[1756997041590,2.13877196,110290.0,110280.0,8.512e-05]
[1756997041795,2.29337196,110290.0,110280.0,8.512e-05]
[1756997042506,2.13877196,110290.0,110280.0,8.512e-05]
[1756997042703,2.29337196,110290.0,110280.0,8.512e-05]
[1756997043116,2.19244034,110290.0,110280.0,8.512e-05]
[1756997043988,2.03784034,110290.0,110280.0,8.512e-05]
[1756997044197,2.19244034,110290.0,110280.0,8.512e-05]
[1756997044536,1.66405238,110290.0,110280.0,8.512e-05]
[1756997044739,1.40406494,110290.0,110280.0,0.00327512]
[1756997044940,1.55866494,110290.0,110280.0,0.00327512]
[1756997045346,1.55233901,110290.0,110280.0,8.512e-05]
[1756997046251,1.52704499,110290.0,110280.0,8.512e-05]
[1756997047826,1.52704499,110290.0,110280.0,0.00528512]
[1756997048693,1.35150617,110290.0,110280.0,0.00528512]
[1756997048906,1.48662433,110290.0,110280.0,0.00528512]
[1756997049143,0.39904841,110290.0,110280.0,0.00528512]
[1756997049345,1.11283637,110290.0,110280.0,0.00528512]
[1756997049560,1.33206433,110290.0,110280.0,0.00528512]
[1756997049762,1.48662433,110290.0,110280.0,0.00528512]
[1756997050396,1.11283637,110290.0,110280.0,0.00528512]
[1756997050601,0.61827637,110290.0,110280.0,0.00528512]
[1756997050847,0.24448841,110290.0,110280.0,0.18664166]
[1756997051044,0.77283637,110290.0,110280.0,0.00528512]
[1756997051245,0.77283637,110290.0,110280.0,0.18664166]
[1756997051661,0.61827637,110290.0,110280.0,0.18664166]
[1756997051866,0.77283637,110290.0,110280.0,0.00528512]
[1756997052270,0.68092038,110290.0,110280.0,0.18664166]
[1756997052472,0.49910358,110290.0,110280.0,0.18664166]
[1756997052691,0.65366358,110290.0,110280.0,0.00528512]
[1756997055899,0.27987562,110290.0,110280.0,0.00528512]
[1756997056118,0.65366358,110290.0,110280.0,0.00528512]
[1756997056531,0.27987562,110290.0,110280.0,0.00528512]
[1756997056754,0.65366358,110290.0,110280.0,0.00528512]
[1756997060459,0.42725119,110290.0,110280.0,0.00528512]
[1756997060668,0.70964806,110290.0,110280.0,0.00528512]
[1756997062715,1.17535201,110290.0,110280.0,8.512e-05]
[1756997063294,0.80156405,110290.0,110280.0,0.00314512]
[1756997063529,0.8288226,110290.0,110280.0,0.00314512]
[1756997063731,0.8288226,110290.0,110280.0,8.512e-05]
[1756997063944,1.20261056,110290.0,110280.0,8.512e-05]
[1756997064505,1.20261056,110290.0,110280.0,0.00314512]
[1756997065510,1.20261056,110290.0,110280.0,0.00528512]
[1756997065699,0.8288226,110290.0,110280.0,0.00528512]
[1756997065903,0.8287826,110290.0,110280.0,0.00528512]
[1756997066104,0.58238661,110290.0,110280.0,0.00528512]
[1756997066304,0.3358201,110290.0,110280.0,0.00528512]
[1756997066502,0.70960806,110290.0,110280.0,0.00528512]
[1756997070011,0.73686618,110290.0,110280.0,0.00528512]
[1756997070443,1.11065414,110290.0,110280.0,0.00528512]
[1756997070674,0.70960806,110290.0,110280.0,0.00528512]
[1756997072421,0.3358201,110290.0,110280.0,0.00528512]
[1756997072615,0.70960806,110290.0,110280.0,0.00528512]
[1756997073149,0.3358201,110290.0,110280.0,0.00528512]
[1756997073559,0.70960806,110290.0,110280.0,0.00528512]
[1756997073778,0.55512806,110290.0,110280.0,0.00528512]
[1756997074150,0.1813401,110290.0,110280.0,0.00528512]
[1756997074360,0.3357801,110290.0,110280.0,0.00528512]
[1756997075165,0.3357801,110290.0,110280.0,0.37907308]
[1756997076426,0.3357801,110290.0,110280.0,0.00528512]
[1756997076837,0.3357801,110290.0,110280.0,0.37907308]
[1756997077250,0.3357801,110290.0,110280.0,0.00528512]
[1756997077665,0.86005849,110290.0,110280.0,8.512e-05]
[1756997077837,0.80148405,110290.0,110280.0,8.512e-05]
[1756997080005,1.17527201,110290.0,110280.0,8.512e-05]
[1756997080226,0.80148405,110290.0,110280.0,8.512e-05]
[1756997081258,0.64704405,110290.0,110280.0,0.00304512]
[1756997081467,0.42765609,110290.0,110280.0,0.00506512]
[1756997081661,0.80144405,110290.0,110280.0,0.00506512]
[1756997081893,0.80144405,110290.0,110280.0,0.00304512]
[1756997082309,0.64704405,110290.0,110280.0,0.00506512]
[1756997082534,0.80144405,110290.0,110280.0,0.00506512]
[1756997082933,0.42765609,110290.0,110280.0,0.00506512]
[1756997083072,0.80144405,110290.0,110280.0,0.00506512]
[1756997083495,0.27325609,110290.0,110280.0,0.00506512]
[1756997083725,0.42765609,110290.0,110280.0,0.00506512]
[1756997084142,0.80144405,110290.0,110280.0,0.00506512]
[1756997084585,0.27325609,110290.0,110280.0,0.00506512]
[1756997084805,0.80144405,110290.0,110280.0,0.00506512]
[1756997085371,0.42765609,110290.0,110280.0,0.00506512]
[1756997085623,0.40902776,110290.0,110280.0,0.00506512]
[1756997085848,0.78281572,110290.0,110280.0,0.00304512]
[1756997086541,0.78281572,110290.0,110280.0,0.00506512]
[1756997086749,0.40902776,110290.0,110280.0,0.00506512]
[1756997086935,0.78281572,110290.0,110280.0,0.00506512]
[1756997089054,0.78281572,110290.0,110280.0,8.512e-05]
[1756997089253,0.78281572,110290.0,110280.0,0.00506512]
[1756997090126,0.40902776,110290.0,110280.0,0.00506512]
[1756997090566,0.78281572,110290.0,110280.0,0.00506512]
[1756997090920,0.25462776,110290.0,110280.0,0.00506512]
[1756997091122,0.40898776,110290.0,110280.0,0.00506512]
[1756997091733,0.3357001,110290.0,110280.0,0.56020962]
[1756997095354,0.3357001,110290.0,110280.0,0.37885308]
[1756997095816,0.3357001,110290.0,110280.0,0.00506512]
[1756997099746,0.30905605,110290.0,110280.0,0.00506512]
[1756997100337,0.30905605,110290.0,110280.0,0.00304512]
[1756997100561,0.30905605,110290.0,110280.0,8.512e-05]
[1756997101199,0.30905605,110290.0,110280.0,0.00304512]
[1756997101423,0.30905605,110290.0,110280.0,0.00506512]
[1756997101774,0.30905605,110290.0,110280.0,0.00304512]
[1756997102155,0.30905605,110290.0,110280.0,8.512e-05]
[1756997102329,0.68253425,110290.0,110280.0,8.512e-05]
[1756997102696,0.70979234,110290.0,110280.0,8.512e-05]
[1756997104167,0.70979234,110290.0,110280.0,0.00304512]
[1756997104374,0.70979234,110290.0,110280.0,8.512e-05]
[1756997104609,0.20859819,110290.0,110280.0,8.512e-05]
[1756997104826,0.36287819,110290.0,110280.0,0.00506512]
[1756997105036,0.02725809,110290.0,110280.0,0.37854332]
[1756997105251,0.3356201,110290.0,110280.0,0.00506512]
[1756997105471,0.3356201,110290.0,110280.0,0.00304512]
[1756997106157,0.3356201,110290.0,110280.0,0.00506512]
[1756997106962,0.3356201,110290.0,110280.0,0.00304512]
[1756997107182,0.7090983,110290.0,110280.0,8.512e-05]
[1756997109575,0.80101429,110290.0,110280.0,8.512e-05]
[1756997109783,0.82827323,110290.0,110280.0,8.512e-05]
[1756997111430,0.45479503,110290.0,110280.0,8.512e-05]
[1756997111634,0.82827323,110290.0,110280.0,8.512e-05]
[1756997112806,0.63463466,110290.0,110280.0,8.512e-05]
[1756997113023,0.44249656,110290.0,110280.0,8.512e-05]
[1756997113225,0.81597476,110290.0,110280.0,8.512e-05]
[1756997114283,1.61074052,110290.0,110280.0,8.512e-05]
[1756997114489,1.68244052,110290.0,110280.0,8.512e-05]
[1756997114702,1.7097058,110290.0,110280.0,8.512e-05]
[1756997115339,1.61778981,110290.0,110280.0,8.512e-05]
[1756997116187,1.16823957,110290.0,110280.0,8.512e-05]
[1756997119108,1.19535035,110290.0,110280.0,8.512e-05]
[1756997119623,1.56882855,110290.0,110280.0,8.512e-05]
[1756997120056,1.58976737,110290.0,110280.0,8.512e-05]
[1756997120711,1.68168336,110290.0,110280.0,8.512e-05]
[1756997121350,1.73168336,110290.0,110280.0,8.512e-05]
[1756997121569,1.85437263,110290.0,110280.0,8.512e-05]
[1756997121778,1.83127862,110290.0,110280.0,8.512e-05]
[1756997121984,1.67703862,110290.0,110280.0,8.512e-05]
[1756997122197,1.66766263,110290.0,110280.0,8.512e-05]
[1756997122998,1.66766144,110290.0,110280.0,8.512e-05]
[1756997123204,1.65921939,110290.0,110280.0,8.512e-05]
[1756997124516,1.08150119,110290.0,110280.0,8.512e-05]
[1756997124742,1.21480237,110290.0,110280.0,0.00326512]
[1756997125184,1.24645724,110290.0,110280.0,0.00326512]
[1756997125673,1.24645724,110290.0,110280.0,8.512e-05]
[1756997125867,1.69223467,110290.0,110280.0,8.512e-05]
[1756997126583,1.7862675,110290.0,110280.0,8.512e-05]
[1756997126806,1.81057649,110290.0,110280.0,8.512e-05]
[1756997127308,1.86157649,110290.0,110280.0,8.512e-05]
[1756997127562,1.91018248,110290.0,110280.0,8.512e-05]
[1756997127776,1.93427649,110290.0,110280.0,8.512e-05]
[1756997128015,1.96676516,110290.0,110280.0,8.512e-05]
[1756997128249,1.94367115,110290.0,110280.0,8.512e-05]
[1756997128463,1.91118248,110290.0,110280.0,8.512e-05]
[1756997128694,1.16422608,110290.0,110280.0,8.512e-05]
[1756997128933,1.91118248,110290.0,110280.0,8.512e-05]
[1756997129183,1.93427649,110290.0,110280.0,8.512e-05]
[1756997129814,1.91118248,110290.0,110280.0,8.512e-05]
[1756997130020,1.83888325,110290.0,110280.0,8.512e-05]
[1756997130227,1.76718325,110290.0,110280.0,8.512e-05]
[1756997130643,1.61294325,110290.0,110280.0,8.512e-05]
[1756997130857,1.76718325,110290.0,110280.0,8.512e-05]
[1756997131751,1.86197726,110290.0,110280.0,8.512e-05]
[1756997131961,1.98638192,110290.0,110280.0,8.512e-05]
[1756997133222,2.08195192,110290.0,110280.0,8.512e-05]
[1756997133440,2.41545351,110290.0,110280.0,8.512e-05]
[1756997133651,2.03452609,110290.0,110280.0,8.512e-05]
[1756997134037,2.03352609,110290.0,110280.0,8.512e-05]
[1756997134239,2.03252609,110290.0,110280.0,8.512e-05]
[1756997134617,2.03852609,110290.0,110280.0,8.512e-05]
[1756997134989,2.03843996,110290.0,110280.0,8.512e-05]
[1756997135233,1.94650738,110290.0,110280.0,8.512e-05]
[1756997136568,1.92556856,110290.0,110280.0,8.512e-05]
[1756997136775,1.94650738,110290.0,110280.0,8.512e-05]
[1756997137122,1.94650468,110290.0,110280.0,8.512e-05]
[1756997137567,1.99463513,110290.0,110280.0,8.512e-05]
[1756997137782,2.08655112,110290.0,110280.0,8.512e-05]
[1756997139121,1.83350034,110290.0,110280.0,8.512e-05]
[1756997139334,1.98774034,110290.0,110280.0,8.512e-05]
[1756997140445,1.67251508,110290.0,110280.0,8.512e-05]
[1756997140664,1.59563385,110290.0,110280.0,0.00534512]
[1756997140855,1.78255287,110290.0,110280.0,0.00534512]
[1756997141008,1.80349169,110290.0,110280.0,0.00534512]
[1756997141440,0.52138944,110260.0,110250.0,0.07354631]
[1756997141619,1.14102363,110260.0,110250.0,0.07354631]
[1756997141811,1.14102363,110260.0,110250.0,0.07562631]
[1756997142016,1.16829148,110260.0,110250.0,0.07562631]
[1756997142222,1.16829148,110260.0,110250.0,0.00208]
[1756997142424,0.79481328,110260.0,110250.0,0.00208]
[1756997142644,1.16829148,110260.0,110250.0,0.00208]
[1756997143537,1.16829148,110260.0,110250.0,0.00526]
[1756997145411,0.79481328,110260.0,110250.0,0.00526]
[1756997145657,1.01405148,110260.0,110250.0,0.00526]
[1756997145890,0.11918384,110260.0,110250.0,0.00526]
[1756997146121,0.19048157,110290.0,110270.0,0.18137054]
[1756997146345,0.19048157,110290.0,110280.0,0.00526]
[1756997146346,0.18141457,110290.0,110280.0,0.00526]
[1756997146655,0.55489277,110290.0,110280.0,0.00526]
[1756997146858,0.70913277,110290.0,110280.0,0.00526]
[1756997147081,0.55489277,110290.0,110280.0,0.00526]
[1756997147956,0.70909277,110290.0,110280.0,0.00526]
[1756997148591,0.55489277,110290.0,110280.0,0.00626]
[1756997149250,0.55489277,110290.0,110280.0,0.00726]
[1756997150357,0.70913277,110290.0,110280.0,0.00726]
[1756997150578,0.80319876,110290.0,110280.0,0.00408]
[1756997150809,0.85304774,110290.0,110280.0,0.00408]
[1756997151041,0.85304774,110290.0,110280.0,0.002]
[1756997151250,0.88015852,110290.0,110280.0,0.002]
[1756997151764,0.88015852,110290.0,110280.0,0.001]
[1756997151996,0.18137299,110270.0,110260.0,0.00318]
[1756997152405,0.18137299,110270.0,110260.0,0.00526]
[1756997153282,0.18137299,110270.0,110260.0,0.00726]
[1756997154879,0.18137299,110270.0,110260.0,0.01026]
[1756997155096,0.55485119,110270.0,110260.0,0.00708]
[1756997155313,0.55700119,110270.0,110260.0,0.00708]
[1756997155529,0.71084744,110270.0,110260.0,0.00708]
[1756997155742,0.73795822,110270.0,110260.0,0.005]
[1756997155923,0.67920796,110270.0,110260.0,0.005]
[1756997156540,0.67920796,110270.0,110260.0,0.00708]
[1756997156780,0.70647336,110270.0,110260.0,0.00708]
[1756997156988,0.70647336,110270.0,110260.0,0.005]
[1756997158063,0.70647336,110270.0,110260.0,0.002]
[1756997158501,0.18140589,110250.0,110240.0,0.19367211]
[1756997158733,0.18140589,110250.0,110240.0,0.19575211]
[1756997159351,0.18140589,110250.0,110240.0,0.00526]
[1756997159766,0.18140589,110250.0,110240.0,0.00873027]
[1756997159966,0.18140589,110250.0,110240.0,0.00347027]
[1756997160243,0.80885701,110250.0,110240.0,0.00555027]
[1756997160453,0.80885701,110250.0,110240.0,0.00347027]
[1756997160454,0.82972025,110250.0,110240.0,0.00347027]
[1756997160884,0.45596836,110250.0,110240.0,0.00347027]
[1756997161094,0.82972025,110250.0,110240.0,0.00347027]
[1756997161519,0.82972025,110250.0,110240.0,0.00047027]
[1756997161733,0.82972025,110250.0,110240.0,0.00247027]
[1756997162011,0.82972025,110250.0,110240.0,0.00647027]
[1756997162233,0.82972025,110250.0,110240.0,0.00047027]
[1756997162455,0.85698996,110250.0,110240.0,0.00047027]
[1756997162670,0.85698996,110250.0,110240.0,0.00247027]
[1756997163147,0.48323807,110250.0,110240.0,0.00247027]
[1756997163357,0.85698996,110250.0,110240.0,0.00247027]
[1756997164724,0.85681308,110250.0,110240.0,0.00247027]
[1756997166768,0.48306119,110250.0,110240.0,0.00247027]
[1756997167000,0.85681308,110250.0,110240.0,0.00247027]
[1756997167439,1.23056497,110250.0,110240.0,0.00247027]
[1756997167656,1.59767575,110250.0,110240.0,0.00247027]
[1756997168257,1.59767575,110250.0,110240.0,0.00147027]
[1756997168465,1.59767575,110250.0,110240.0,0.00047027]
[1756997168672,1.59867575,110250.0,110240.0,0.00047027]
[1756997168906,1.59967575,110250.0,110240.0,0.00047027]
[1756997169091,1.57056497,110250.0,110240.0,0.00047027]
[1756997169604,1.57256497,110250.0,110240.0,0.00047027]
[1756997170874,1.66448096,110250.0,110240.0,0.00047027]
[1756997171077,1.57256497,110250.0,110240.0,0.00047027]
[1756997171485,1.21461036,110250.0,110240.0,0.00047027]
[1756997175095,1.65220913,110250.0,110240.0,0.00047027]
[1756997176814,1.70220913,110250.0,110240.0,0.00047027]
[1756997177578,1.31265996,110250.0,110240.0,0.00047027]
[1756997177794,1.45457595,110250.0,110240.0,0.00047027]
[1756997178229,1.40457595,110250.0,110240.0,0.00047027]
[1756997178435,1.47399893,110250.0,110240.0,0.00047027]
[1756997178669,1.40461595,110250.0,110240.0,0.00047027]
[1756997178874,1.47399727,110250.0,110240.0,0.00047027]
[1756997179516,1.42399727,110250.0,110240.0,0.00047027]
[1756997179724,1.47399727,110250.0,110240.0,0.00047027]
[1756997179932,1.86354644,110250.0,110240.0,0.00047027]
[1756997181456,1.81354644,110250.0,110240.0,0.00047027]
[1756997181684,1.86354644,110250.0,110240.0,0.00047027]
[1756997182315,1.77163045,110250.0,110240.0,0.00047027]
[1756997182555,1.38208128,110250.0,110240.0,0.00047027]
[1756997183599,1.61739045,110250.0,110240.0,0.00047027]
[1756997183796,1.77163045,110250.0,110240.0,0.00047027]
[1756997184142,1.38208128,110250.0,110240.0,0.00047027]
[1756997184575,1.33208128,110250.0,110240.0,0.00047027]
[1756997184761,1.38208128,110250.0,110240.0,0.00047027]
[1756997185661,0.81118133,110250.0,110240.0,0.00047027]
[1756997185902,1.3549705,110250.0,110240.0,0.00047027]
[1756997186330,1.2007305,110250.0,110240.0,0.00047027]
[1756997186545,1.3550905,110250.0,110240.0,0.00047027]
[1756997187176,1.46862567,110250.0,110240.0,0.00047027]
[1756997187391,1.56419567,110250.0,110240.0,0.00047027]
[1756997187603,1.46862567,110250.0,110240.0,0.00047027]
[1756997188441,1.41862567,110250.0,110240.0,0.00047027]
[1756997188673,1.46862567,110250.0,110240.0,0.00047027]
[1756997189959,1.38220128,110250.0,110240.0,0.00047027]
[1756997190389,1.38220128,110250.0,110240.0,1e-08]
[1756997191039,1.33852621,110250.0,110240.0,1e-08]
[1756997191255,0.20236117,110240.0,110230.0,1e-08]
[1756997191473,1.66350838,110240.0,110230.0,1e-08]
[1756997191690,1.66860838,110240.0,110230.0,1e-08]
[1756997191905,0.54629044,110240.0,110230.0,1e-08]
[1756997192136,1.66860838,110240.0,110230.0,1e-08]
[1756997192626,1.71860838,110240.0,110230.0,1e-08]
[1756997193056,1.37926899,110240.0,110230.0,1e-08]
[1756997193490,1.617603,110240.0,110230.0,1e-08]
[1756997193740,0.59237762,110230.0,110220.0,1e-08]
[1756997193955,2.05778365,110230.0,110220.0,1e-08]
[1756997194165,2.17166905,110230.0,110220.0,1e-08]
[1756997194602,2.18010352,110230.0,110220.0,1e-08]
[1756997195015,2.18006352,110230.0,110220.0,1e-08]
[1756997195438,2.18006249,110230.0,110220.0,1e-08]
[1756997196069,2.18006249,110230.0,110210.0,0.0004]
[1756997196070,0.25239409,110220.0,110210.0,1e-08]
[1756997196280,1.69315407,110220.0,110210.0,1e-08]
[1756997196492,1.79017006,110220.0,110210.0,1e-08]
[1756997196704,1.79017006,110220.0,110200.0,1e-08]
[1756997196705,0.52147173,110210.0,110200.0,1e-08]
[1756997196914,2.07011048,110210.0,110200.0,1e-08]
[1756997197133,2.13828121,110210.0,110200.0,1e-08]
[1756997197577,2.20922003,110210.0,110200.0,1e-08]
[1756997197787,2.208058,110210.0,110200.0,1e-08]
[1756997197996,2.24538841,110210.0,110200.0,1e-08]
[1756997198204,1.12307047,110210.0,110200.0,1e-08]
[1756997198426,0.94537567,110210.0,110200.0,1e-08]
[1756997198641,1.10009567,110210.0,110200.0,1e-08]
[1756997199069,1.14816814,110210.0,110200.0,1e-08]
[1756997199282,0.99244814,110210.0,110200.0,1e-08]
[1756997199500,0.99344814,110210.0,110200.0,1e-08]
[1756997199729,1.14912814,110210.0,110200.0,1e-08]
[1756997199936,0.99444814,110210.0,110200.0,1e-08]
[1756997200192,1.01762728,110210.0,110200.0,1e-08]
[1756997200416,1.0405165,110210.0,110200.0,1e-08]
[1756997200627,1.0405165,110210.0,110200.0,0.00201001]
[1756997200837,1.04050692,110210.0,110200.0,0.00201001]
[1756997201094,1.04050692,110210.0,110200.0,1e-08]
[1756997201297,0.99659666,110210.0,110200.0,1e-08]
[1756997201521,1.76872982,110210.0,110200.0,1e-08]
[1756997201721,1.87527937,110210.0,110200.0,0.00201001]
[1756997201999,1.5169678,110210.0,110200.0,0.00496001]
[1756997202411,0.78826838,110210.0,110200.0,0.00496001]
[1756997202611,0.91875534,110210.0,110200.0,0.00496001]
[1756997202820,0.54464936,110210.0,110200.0,0.00496001]
[1756997203025,0.91375534,110210.0,110200.0,0.00496001]
[1756997203227,0.91575534,110210.0,110200.0,0.00496001]
[1756997203431,0.91875534,110210.0,110200.0,0.00496001]
[1756997203604,0.90194017,110210.0,110200.0,0.00496001]
[1756997203783,0.67534017,110210.0,110200.0,0.00496001]
[1756997204008,0.27438772,110210.0,110200.0,0.00496001]
[1756997204223,0.81262329,110210.0,110200.0,0.00496001]
[1756997204422,0.81162329,110210.0,110200.0,0.00496001]
[1756997204757,0.83000056,110210.0,110200.0,0.00496001]
[1756997204958,0.81062329,110210.0,110200.0,0.00496001]
[1756997205161,0.7187073,110210.0,110200.0,0.00496001]
[1756997205623,0.18988132,110210.0,110200.0,0.18644821]
[1756997205800,0.34456132,110210.0,110200.0,0.18644821]